Department Family,Entity,Date of Payment,GL Description,Expense Area,Supplier,Voluntary,SME Class,Sole Trader,Transaction number,Purchasing Item Text,Postal Code,Amount in Sterling,Grant?
MHCLG,PINS,01/02/2018,Agency Staff,Enforcements,REED SPECIALIST RECRUITMENT LTD,,Large,,5106233766,Agency Staff RT,SW20 0BA,543.24,
MHCLG,PINS,01/02/2018,Conferences and Meeting Facilities,Common Land,THORNES CHARTERED SURVEYORS,,Micro,,5106233767,hire of external meeting room,BH15 1NR,"6,187.50",
MHCLG,PINS,01/02/2018,Courier Services,Estates,ROYAL MAIL,,Large,,5106233786,Outgoing post,S49 1HQ,"1,758.08",
MHCLG,PINS,01/02/2018,NSI Fees & Expenses,NSI Fees Planning,ANDREW DALE,,Not assigned,,2100057774,,DE23 8DP,"1,848.00",
MHCLG,PINS,01/02/2018,NSI Fees & Expenses,NSI Expenses Planning,ANDREW DALE,,Not assigned,,2100057774,,DE23 8DP,385.89,
MHCLG,PINS,01/02/2018,NSI Fees & Expenses,NSI Fees Planning,FITZSIMON PLANNING & DEVELOPMENT,,Micro,,2100057737,,CH7 5NL,"1,120.00",
MHCLG,PINS,01/02/2018,NSI Fees & Expenses,NSI Fees Planning,JDA DEVELOPMENT & PLANNING SERVICE,,Micro,,2100057736,,TA14 6PT,"1,400.00",
MHCLG,PINS,01/02/2018,NSI Fees & Expenses,NSI Expenses Planning,JDA DEVELOPMENT & PLANNING SERVICE,,Micro,,2100057736,,TA14 6PT,102.40,
MHCLG,PINS,01/02/2018,NSI Fees & Expenses,NSI Fees Planning,LJE PLANNING LTD,,Data Not Provided,,2100057773,,SO22 6RT,"1,948.80",
MHCLG,PINS,01/02/2018,NSI Fees & Expenses,NSI Expenses Planning,LJE PLANNING LTD,,Data Not Provided,,2100057773,,SO22 6RT,140.64,
MHCLG,PINS,01/02/2018,NSI Fees & Expenses,NSI Fees Planning,SANDRA PRAIL LTD,,Micro,,2100057772,,BN16 1RX,907.20,
MHCLG,PINS,01/02/2018,NSI Fees & Expenses,NSI Expenses Planning,SANDRA PRAIL LTD,,Micro,,2100057772,,BN16 1RX,90.00,
MHCLG,PINS,01/02/2018,Office machinery consumables,Business Support,X M A LIMITED,,Data Not Provided,,5106233761,Office Machine Consumables,NG11 7EP,"3,724.38",
MHCLG,PINS,01/02/2018,Office machinery consumables,Business Support,X M A LIMITED,,Data Not Provided,,5106233762,Office Machine Consumables,NG11 7EP,636.05,
MHCLG,PINS,01/02/2018,Office Supplies,Business Support,BANNER BUSINESS SUPPLIES LTD,,Large,,5106233763,Office Stationery 17-18,S9 1XU,301.55,
MHCLG,PINS,01/02/2018,Office Supplies,Business Support,BANNER BUSINESS SUPPLIES LTD,,Large,,5106233763,Paper 17-18,S9 1XU,328.31,
MHCLG,PINS,01/02/2018,Office Supplies,Business Support,BANNER BUSINESS SUPPLIES LTD,,Large,,5106233764,Office Stationery 17-18,S9 1XU,441.81,
MHCLG,PINS,01/02/2018,Office Supplies,Business Support,BANNER BUSINESS SUPPLIES LTD,,Large,,5106233764,Paper 17-18,S9 1XU,328.31,
MHCLG,PINS,01/02/2018,Office Supplies,Business Support,BANNER BUSINESS SUPPLIES LTD,,Large,,5106233765,Office Stationery 17-18,S9 1XU,229.81,
MHCLG,PINS,01/02/2018,Office Supplies,Business Support,BANNER BUSINESS SUPPLIES LTD,,Large,,5106233765,Paper 17-18,S9 1XU,269.93,
MHCLG,PINS,02/02/2018,Agency Staff,TR Digital Transformation,REED SPECIALIST RECRUITMENT LTD,,Large,,5106233716,Build Suport,SW20 0BA,"1,005.30",
MHCLG,PINS,02/02/2018,Agency Staff,Inspector Development & Support Team,REED SPECIALIST RECRUITMENT LTD,,Large,,5106233719,Agency Staff for IDST DB,SW20 0BA,816.76,
MHCLG,PINS,02/02/2018,Agency Staff,Inspector Development & Support Team,REED SPECIALIST RECRUITMENT LTD,,Large,,5106233814,Temp staff for IDST,SW20 0BA,564.11,
MHCLG,PINS,02/02/2018,IT Systems Testing & Auditing,TR Digital Transformation,THIRTY FOUR FEET LTD,,Micro,,5106233781,Test resource - Horizon for DCLG,NP15 1QB,"3,780.00",
MHCLG,PINS,02/02/2018,NSI Fees & Expenses,NSI Fees Planning,H J L PLANNING,,Micro,,2100057780,,CM3 1HZ,"1,400.00",
MHCLG,PINS,02/02/2018,NSI Fees & Expenses,NSI Expenses Planning,H J L PLANNING,,Micro,,2100057780,,CM3 1HZ,81.19,
MHCLG,PINS,02/02/2018,Publications,"Policy, Knowledge & Quality",THOMSON REUTERS (PROFESSIONAL) UK L,,Large,,5106233812,Hard Copy Rncyclopaedias,SP10 9AF,"6,747.85",
MHCLG,PINS,05/02/2018,Agency Staff,Customer & Communications,REED SPECIALIST RECRUITMENT LTD,,Large,,5106233717,Agency staff CST,SW20 0BA,599.84,
MHCLG,PINS,06/02/2018,Agency Staff,Enforcements,REED SPECIALIST RECRUITMENT LTD,,Large,,5106233895,Agency Staff RT,SW20 0BA,670.00,
MHCLG,PINS,06/02/2018,Cycle to Work Scheme,Finance accounting adjustments,EDENRED (UK GROUP) LTD,,Large,,2100057912,,SW1V 2RS,712.76,
MHCLG,PINS,06/02/2018,IT - Service Contracts,ICT Business Partner,ZSAH LTD,,Small,,5106233794,Extension of contract PINS 17/12/710,SW7 3HE,"3,415.22",
MHCLG,PINS,06/02/2018,IT Maintenance,ICT Business Partner,X M A LTD,,Data Not Provided,,5106233907,Collect and install HP M880 devices x 2,NG11 7EP,840.80,
MHCLG,PINS,06/02/2018,IT SUPPORT,Transformation Prog Management Office,REED SPECIALIST RECRUITMENT LTD,,Large,,5106233897,Agency Staff Transformation,SW20 0BA,394.51,
MHCLG,PINS,06/02/2018,NSI Fees & Expenses,NSI Fees Planning,D C PLANNING LTD,,Data Not Provided,,2100057854,,BH14 8AL,"2,016.00",
MHCLG,PINS,06/02/2018,NSI Fees & Expenses,NSI Expenses Planning,D C PLANNING LTD,,Data Not Provided,,2100057854,,BH14 8AL,264.94,
MHCLG,PINS,06/02/2018,NSI Fees & Expenses,NSI Fees Planning,LEIGH & GLENNIE LTD,,Micro,,2100057857,,SL5 9EA,"2,184.00",
MHCLG,PINS,06/02/2018,NSI Fees & Expenses,NSI Expenses Planning,LEIGH & GLENNIE LTD,,Micro,,2100057857,,SL5 9EA,83.88,
MHCLG,PINS,06/02/2018,NSI Fees & Expenses,NSI Fees Planning,MR R J MAILE,,Not assigned,,2100057913,,BN11 1QG,"1,680.00",
MHCLG,PINS,06/02/2018,NSI Fees & Expenses,NSI Fees Planning,STAR PLANNING & DEVELOPMENT LTD,,Micro,,2100057860,,B14 6BX,"3,696.00",
MHCLG,PINS,06/02/2018,NSI Fees & Expenses,NSI Expenses Planning,STAR PLANNING & DEVELOPMENT LTD,,Micro,,2100057860,,B14 6BX,520.48,
MHCLG,PINS,06/02/2018,Specialist Technical Support,ICT Head of Service,METHODS PROFESSIONAL SERVICES,,Small,,5106233883,Interim head of IT/Digital lead,EC1A 4EN,"23,310.00",
MHCLG,PINS,06/02/2018,Steady State Service Provision,Human Resources,CGI IT UK LIMITED,,Large,,5106233885,Payroll Service 2017/18,CF31 9AP,"3,796.51",
MHCLG,PINS,07/02/2018,Agency Staff,Inspector Development & Support Team,REED SPECIALIST RECRUITMENT LTD,,Large,,5106233891,Agency Staff for IDST DB,SW20 0BA,816.76,
MHCLG,PINS,07/02/2018,Agency Staff,Customer & Communications,REED SPECIALIST RECRUITMENT LTD,,Large,,5106233892,Agency staff CST,SW20 0BA,599.84,
MHCLG,PINS,07/02/2018,Courier Services,Estates,ROYAL MAIL,,Large,,5106233943,Outgoing post,S49 1HQ,"5,101.71",
MHCLG,PINS,07/02/2018,Office Supplies,Business Support,BANNER BUSINESS SUPPLIES LTD,,Large,,5106233933,Office Stationery 17-18,S9 1XU,600.37,
MHCLG,PINS,07/02/2018,Office Supplies,Business Support,BANNER BUSINESS SUPPLIES LTD,,Large,,5106233933,Paper 17-18,S9 1XU,328.31,
MHCLG,PINS,07/02/2018,Recruitment,Human Resources,HAYMARKET MEDIA GROUP LIMITED,,Data Not Provided,,5106233934,Inspec Advertising,TW1 3SP,"1,752.00",
MHCLG,PINS,08/02/2018,Agency Staff,Planning Casework Operations,REED SPECIALIST RECRUITMENT LTD,,Large,,5106233893,CLASSIC CASEWORK - CM,SW20 0BA,679.06,
MHCLG,PINS,08/02/2018,Agency Staff,Planning Casework Operations,REED SPECIALIST RECRUITMENT LTD,,Large,,5106233894,CLASSIC CASEWORK - ES,SW20 0BA,668.11,
MHCLG,PINS,08/02/2018,Agency Staff,Planning Casework Operations,REED SPECIALIST RECRUITMENT LTD,,Large,,5106233956,CLASSIC CASEWORK - KR,SW20 0BA,554.50,
MHCLG,PINS,08/02/2018,IT - Service Contracts,ICT Business Partner,DCLG,,Public Bodies,,5106233959,MHCLG recharge for Daisy telephony,HP2 4XN,"95,732.74",
MHCLG,PINS,08/02/2018,IT SUPPORT,Corporate Services Director,METHODS PROFESSIONAL SERVICES,,Small,,5106233924,DCS OR PM,EC1A 4EN,"20,994.76",
MHCLG,PINS,08/02/2018,IT SUPPORT,TR Digital Transformation,METHODS PROFESSIONAL SERVICES,,Small,,5106233925,Project Manager Horizon Project,EC1A 4EN,"1,634.40",
MHCLG,PINS,08/02/2018,NSI Fees & Expenses,NSI Fees Planning,DESIGN 2,,Micro,,2100057961,,PO20 0HX,"2,016.00",
MHCLG,PINS,08/02/2018,NSI Fees & Expenses,NSI Expenses Planning,DESIGN 2,,Micro,,2100057961,,PO20 0HX,114.36,
MHCLG,PINS,08/02/2018,NSI Fees & Expenses,NSI Fees Planning,GRESTY LAND AGENCY LTD,,Micro,,2100057955,,PE9 4EF,"1,400.00",
MHCLG,PINS,08/02/2018,NSI Fees & Expenses,NSI Expenses Planning,GRESTY LAND AGENCY LTD,,Micro,,2100057955,,PE9 4EF,131.55,
MHCLG,PINS,08/02/2018,NSI Fees & Expenses,NSI Fees Planning,SANDRA PRAIL LTD,,Micro,,2100057962,,BN16 1RX,"1,276.80",
MHCLG,PINS,08/02/2018,NSI Fees & Expenses,NSI Expenses Planning,SANDRA PRAIL LTD,,Micro,,2100057962,,BN16 1RX,38.52,
MHCLG,PINS,08/02/2018,Web Services,ICT Business Partner,MEMSET LIMITED,,Small,,5106233957,Hosting of mini servers FY 2018-19,GU6 8TB,"1,033.02",
MHCLG,PINS,08/02/2018,Web Services,ICT Business Partner,MEMSET LIMITED,,Small,,5106233958,Hosting of mini servers FY 2018-19,GU6 8TB,665.10,
MHCLG,PINS,09/02/2018,Vehicle hire,Inspector Costs,ENTERPRISE RENT-A-CAR,,Large,,5106234012,VEHICLE HIRE APRIL 2017- MARCH 2018,TW20 9FB,"14,933.90",
MHCLG,PINS,12/02/2018,Agency Staff,TR Digital Transformation,REED SPECIALIST RECRUITMENT LTD,,Large,,2100058127,Build Suport,SW20 0BA,-971.80,
MHCLG,PINS,12/02/2018,Agency Staff,TR Digital Transformation,REED SPECIALIST RECRUITMENT LTD,,Large,,5106233896,Build Suport,SW20 0BA,971.80,
MHCLG,PINS,12/02/2018,EXP � PURCHASE OF GOODS /SERVICES R & D,TR Transformation,RAINMAKER SOLUTIONS LTD,,Medium,,5106233952,Extended Discovery ODT,MK18 1HD,"107,025.00",
MHCLG,PINS,12/02/2018,NSI Fees & Expenses,NSI Fees Planning,GARY DEANE ASSOCIATES LIMITED,,Micro,,2100058039,,M33 6RG,"2,016.00",
MHCLG,PINS,12/02/2018,NSI Fees & Expenses,NSI Expenses Planning,GARY DEANE ASSOCIATES LIMITED,,Micro,,2100058039,,M33 6RG,258.12,
MHCLG,PINS,12/02/2018,Software Licences,TR Digital Transformation,PHOENIX SOFTWARE,,Medium,,5106234025,Microsoft EMS Licenses,YO42 1NS,"1,149.53",
MHCLG,PINS,12/02/2018,Specialist Technical Support,Transformation Prog Management Office,METHODS PROFESSIONAL SERVICES,,Small,,5106233884,Programme Management Specialist,EC1A 4EN,"23,940.00",
MHCLG,PINS,12/02/2018,Specialist Technical Support,Transformation Prog Management Office,METHODS PROFESSIONAL SERVICES,,Small,,5106233949,Programme Management Specialist,EC1A 4EN,"1,140.00",
MHCLG,PINS,13/02/2018,Agency Staff,Customer & Communications,REED SPECIALIST RECRUITMENT LTD,,Large,,5106234041,Agency staff CST,SW20 0BA,599.84,
MHCLG,PINS,13/02/2018,Agency Staff,TR Digital Transformation,REED SPECIALIST RECRUITMENT LTD,,Large,,5106234042,Build Suport,SW20 0BA,"1,005.30",
MHCLG,PINS,13/02/2018,Agency Staff,Inspector Development & Support Team,REED SPECIALIST RECRUITMENT LTD,,Large,,5106234043,Agency Staff for IDST DB,SW20 0BA,816.76,
MHCLG,PINS,13/02/2018,Agency Staff,Inspector Development & Support Team,REED SPECIALIST RECRUITMENT LTD,,Large,,5106234053,Temp staff for IDST,SW20 0BA,349.12,
MHCLG,PINS,13/02/2018,Communication Telecom Costs,ICT Business Partner,BT PAYMENT SERVICE LIMITED,,Large,,5106234051,Line rental & usage charges for a/c,DH98 1BT,265.32,
MHCLG,PINS,13/02/2018,Conferences and Meeting Facilities,Wales Director,JURYS INN CARDIFF,,Large,,5106234031,Meeting Room For Training event,CF10 3DN,405.00,
MHCLG,PINS,13/02/2018,Internal Audit,"Finance, Commercial & Performance",H M TREASURY,,Public Bodies,,5106234028,Internal Audit Services,NR7 0HS,"11,689.25",
MHCLG,PINS,13/02/2018,IT - Service Contracts,ICT Business Partner,DCLG,,Public Bodies,,5106234049,MHCLG recharge for Fujitsu Connect,HP2 4XN,"567,394.50",
MHCLG,PINS,13/02/2018,IT SUPPORT,Transformation Prog Management Office,REED SPECIALIST RECRUITMENT LTD,,Large,,5106234038,Agency Staff Transformation,SW20 0BA,979.91,
MHCLG,PINS,13/02/2018,Online Database Information Retrieval,"Policy, Knowledge & Quality",THOMSON REUTERS (PROFESSIONAL) UK L,,Large,,2100058150,Westlaw services Year 3 2020,SP10 9AF,"-83,374.69",
MHCLG,PINS,13/02/2018,Online Database Information Retrieval,"Policy, Knowledge & Quality",THOMSON REUTERS (PROFESSIONAL) UK L,,Large,,5106234074,Westlaw services Year 3 2020,SP10 9AF,"83,374.69",
MHCLG,PINS,13/02/2018,Recruitment/Procurement Accomodation,Differences - Central,REDFERN TRAVEL LIMITED,,Small,,5106234048,BILLBACK FEES,BD1 3AZ,28.00,
MHCLG,PINS,13/02/2018,Recruitment/Procurement Accomodation,Differences - Central,REDFERN TRAVEL LIMITED,,Small,,5106234048,HOTEL ACCOMMODATION,BD1 3AZ,"46,241.17",
MHCLG,PINS,13/02/2018,Recruitment/Procurement Accomodation,Differences - Central,REDFERN TRAVEL LIMITED,,Small,,5106234048,HOTEL FEES,BD1 3AZ,225.62,
MHCLG,PINS,13/02/2018,Recruitment/Procurement Accomodation,Differences - Central,REDFERN TRAVEL LIMITED,,Small,,5106234048,WEB TRANSACTIONS,BD1 3AZ,151.80,
MHCLG,PINS,13/02/2018,Technical Aids for the disabled,Human Resources,HEALTH  MANAGEMENT LTD,,Medium,,5106234030,Health Managmt WEF 1/12/17,BN8 5NN,877.80,
MHCLG,PINS,13/02/2018,Translations,Wales Director,TROSOL CYFYNGEDIG,,Small,,5106234032,Welsh Translation Services - PINS Wales,CF14 5GH,600.00,
MHCLG,PINS,13/02/2018,Travel and Subsistence Account,Differences - Central,REDFERN TRAVEL LIMITED,,Small,,5106234048,AIR TRAVEL,BD1 3AZ,"2,070.81",
MHCLG,PINS,13/02/2018,Travel and Subsistence Account,Differences - Central,REDFERN TRAVEL LIMITED,,Small,,5106234048,FERRY TRAVEL,BD1 3AZ,229.39,
MHCLG,PINS,13/02/2018,Travel and Subsistence Account,Differences - Central,REDFERN TRAVEL LIMITED,,Small,,5106234048,RAIL TRAVEL,BD1 3AZ,"43,535.98",
MHCLG,PINS,13/02/2018,Vehicle hire,Business Support,ENTERPRISE RENT-A-CAR,,Large,,5106234047,Hire car,TW20 9FB,341.08,
MHCLG,PINS,14/02/2018,Agency Staff,Planning Casework Operations,REED SPECIALIST RECRUITMENT LTD,,Large,,5106234037,CLASSIC CASEWORK - ES,SW20 0BA,663.58,
MHCLG,PINS,14/02/2018,Agency Staff,Planning Casework Operations,REED SPECIALIST RECRUITMENT LTD,,Large,,5106234039,CLASSIC CASEWORK - CM,SW20 0BA,679.06,
MHCLG,PINS,14/02/2018,Agency Staff,TR Digital Transformation,REED SPECIALIST RECRUITMENT LTD,,Large,,5106234055,Build Suport,SW20 0BA,971.80,
MHCLG,PINS,14/02/2018,Agency Staff,Planning Casework Operations,REED SPECIALIST RECRUITMENT LTD,,Large,,5106234077,CLASSIC CASEWORK - KR,SW20 0BA,581.76,
MHCLG,PINS,14/02/2018,Office machinery consumables,Business Support,X M A LIMITED,,Data Not Provided,,5106234066,Office Machine Consumables,NG11 7EP,390.58,
MHCLG,PINS,14/02/2018,Office machinery consumables,Business Support,X M A LIMITED,,Data Not Provided,,5106234067,Office Machine Consumables,NG11 7EP,859.79,
MHCLG,PINS,14/02/2018,Translations,Wales Director,TROSOL CYFYNGEDIG,,Small,,5106234057,Wales Translation Services 2016-2017,CF14 5GH,"1,275.54",
MHCLG,PINS,15/02/2018,Agency Staff,Enforcements,REED SPECIALIST RECRUITMENT LTD,,Large,,5106234040,Agency Staff RT,SW20 0BA,597.56,
MHCLG,PINS,15/02/2018,IT Systems Testing & Auditing,TR Digital Transformation,THIRTY FOUR FEET LTD,,Micro,,5106234058,Test resource - Horizon for DCLG,NP15 1QB,"3,780.00",
MHCLG,PINS,15/02/2018,NSI Fees & Expenses,NSI Fees Planning,EGGLETON PLANNING AND DESIGN,,Micro,,2100058156,,HG4 2QF,"1,142.40",
MHCLG,PINS,15/02/2018,NSI Fees & Expenses,NSI Expenses Planning,EGGLETON PLANNING AND DESIGN,,Micro,,2100058156,,HG4 2QF,368.76,
MHCLG,PINS,15/02/2018,Specialist Technical Support,TR Digital Transformation,VIEWDECK CONSULTING LTD,,Micro,,5106234063,Live service management services,W1B 3HH,"17,280.00",
MHCLG,PINS,15/02/2018,Training,Human Resources,CABINET OFFICE,,Public Bodies,,5106234079,Cilvil Service Talent - Psy Test- NR & R,FY5 3TA,"15,867.00",
MHCLG,PINS,15/02/2018,Training,Human Resources,WHITE MAPLE CONSULTING,,Data Not Provided,,5106234095,Coaching - MS,W14 0HT,684.80,
MHCLG,PINS,16/02/2018,Office machinery consumables,Business Support,X M A LIMITED,,Data Not Provided,,5106234104,Office Machine Consumables,NG11 7EP,550.20,
MHCLG,PINS,16/02/2018,Office machinery consumables,Business Support,X M A LIMITED,,Data Not Provided,,5106234107,Office Machine Consumables,NG11 7EP,586.80,
MHCLG,PINS,16/02/2018,Physical Storage,Business Support,TNT UK LTD,,Large,,5106234103,Physical Storage,DE11 1EG,"1,366.56",
MHCLG,PINS,19/02/2018,TSOL Adverse Costs,"Policy, Knowledge & Quality",GOVERNMENT LEGAL DEPARTMENT,,Public Bodies,,2100058280,,WC2B 4TS,"9,000.00",
MHCLG,PINS,20/02/2018,Agency Staff,Differences - Central,REED SPECIALIST RECRUITMENT LTD,,Large,,5106234182,Agency Staff for Library project,SW20 0BA,566.10,
MHCLG,PINS,20/02/2018,Agency Staff,Inspector Development & Support Team,REED SPECIALIST RECRUITMENT LTD,,Large,,5106234183,Agency Staff for IDST DB,SW20 0BA,816.76,
MHCLG,PINS,20/02/2018,Agency Staff,Inspector Development & Support Team,REED SPECIALIST RECRUITMENT LTD,,Large,,5106234184,Temp staff for IDST,SW20 0BA,597.37,
MHCLG,PINS,20/02/2018,NSI Fees & Expenses,NSI Fees Planning,CARBROOK ASSOCIATES,,Micro,,2100058346,,M32 8QU,"1,400.00",
MHCLG,PINS,20/02/2018,NSI Fees & Expenses,NSI Expenses Planning,CARBROOK ASSOCIATES,,Micro,,2100058346,,M32 8QU,134.90,
MHCLG,PINS,20/02/2018,NSI Fees & Expenses,NSI Fees Planning,CHEC PLANNING LTD,,Micro,,2100058251,,CB6 3PG,"1,680.00",
MHCLG,PINS,20/02/2018,NSI Fees & Expenses,NSI Expenses Planning,CHEC PLANNING LTD,,Micro,,2100058251,,CB6 3PG,100.26,
MHCLG,PINS,20/02/2018,NSI Fees & Expenses,NSI Fees Planning,CHRIS TIVEY ASSOCIATES,,Micro,,2100058246,,BA4 9DN,"1,680.00",
MHCLG,PINS,20/02/2018,NSI Fees & Expenses,NSI Expenses Planning,CHRIS TIVEY ASSOCIATES,,Micro,,2100058246,,BA4 9DN,145.37,
MHCLG,PINS,20/02/2018,NSI Fees & Expenses,NSI Fees Planning,ELIZABETH LAWRENCE LTD,,Micro,,2100058248,,RH20 3LY,"2,016.00",
MHCLG,PINS,20/02/2018,NSI Fees & Expenses,NSI Expenses Planning,ELIZABETH LAWRENCE LTD,,Micro,,2100058248,,RH20 3LY,81.54,
MHCLG,PINS,20/02/2018,NSI Fees & Expenses,NSI Fees Planning,W S C WADRUP INDEPENDENT CONS LTD,,Micro,,2100058249,,MK43 7DU,"4,200.00",
MHCLG,PINS,20/02/2018,NSI Fees & Expenses,NSI Expenses Planning,W S C WADRUP INDEPENDENT CONS LTD,,Micro,,2100058250,,MK43 7DU,"1,258.26",
MHCLG,PINS,21/02/2018,Agency Staff,TR Digital Transformation,REED SPECIALIST RECRUITMENT LTD,,Large,,5106234205,Build Suport,SW20 0BA,"1,005.30",
MHCLG,PINS,21/02/2018,Agency Staff,Customer & Communications,REED SPECIALIST RECRUITMENT LTD,,Large,,5106234234,Agency staff CST,SW20 0BA,599.84,
MHCLG,PINS,21/02/2018,Courier Services,Estates,ROYAL MAIL,,Large,,5106234255,Outgoing post,S49 1HQ,"1,638.82",
MHCLG,PINS,21/02/2018,IT SUPPORT,TR People,HAYS SPECIALIST RECRUITMENT LTD,,Large,,5106234217,HR BP - SL,NW1 2AF,"3,285.72",
MHCLG,PINS,21/02/2018,IT SUPPORT,TR People,HAYS SPECIALIST RECRUITMENT LTD,,Large,,5106234221,HR BP - SL,NW1 2AF,"3,285.72",
MHCLG,PINS,21/02/2018,IT SUPPORT,Transformation Prog Management Office,REED SPECIALIST RECRUITMENT LTD,,Large,,5106234185,Agency Staff Transformation,SW20 0BA,998.99,
MHCLG,PINS,21/02/2018,IT SUPPORT,Transformation Prog Management Office,REED SPECIALIST RECRUITMENT LTD,,Large,,5106234186,Agency Staff Transformation,SW20 0BA,642.66,
MHCLG,PINS,21/02/2018,Office Machinery Rental,ICT Business Partner,NEW RICOH UK,,Large,,5106234236,Removal of 2 Ricoh printers from TQH,TW13 7HG,600.00,
MHCLG,PINS,21/02/2018,Office Supplies,Business Support,BANNER BUSINESS SUPPLIES LTD,,Large,,5106234245,Office Stationery 17-18,S9 1XU,227.47,
MHCLG,PINS,21/02/2018,Office Supplies,Business Support,BANNER BUSINESS SUPPLIES LTD,,Large,,5106234245,Paper 17-18,S9 1XU,306.34,
MHCLG,PINS,22/02/2018,Agency Staff,Planning Casework Operations,REED SPECIALIST RECRUITMENT LTD,,Large,,5106234188,CLASSIC CASEWORK - CM,SW20 0BA,679.06,
MHCLG,PINS,22/02/2018,Agency Staff,Planning Casework Operations,REED SPECIALIST RECRUITMENT LTD,,Large,,5106234189,CLASSIC CASEWORK - ES,SW20 0BA,645.40,
MHCLG,PINS,22/02/2018,Agency Staff,Planning Casework Operations,REED SPECIALIST RECRUITMENT LTD,,Large,,5106234190,CLASSIC CASEWORK - KR,SW20 0BA,581.76,
MHCLG,PINS,22/02/2018,Agency Staff,Enforcements,REED SPECIALIST RECRUITMENT LTD,,Large,,5106234281,Agency Staff RT,SW20 0BA,253.51,
MHCLG,PINS,22/02/2018,Office machinery consumables,Business Support,X M A LIMITED,,Data Not Provided,,5106234214,Office Machine Consumables,NG11 7EP,715.90,
MHCLG,PINS,26/02/2018,Courier Services,Estates,PARCELFORCE WORLDWIDE,,Large,,5106234308,Courier service,MK7 8LE,"6,496.68",
MHCLG,PINS,26/02/2018,IT Systems Testing & Auditing,TR Digital Transformation,THIRTY FOUR FEET LTD,,Micro,,5106234215,Test resource - Horizon for DCLG,NP15 1QB,"2,100.00",
MHCLG,PINS,26/02/2018,Legal Fees,Wales Director,GOVERNMENT LEGAL DEPT,,Public Bodies,,5106234329,Legal Fees(2017-18),WC2B 4TS,"7,777.32",
MHCLG,PINS,27/02/2018,Agency Staff,Enforcements,REED SPECIALIST RECRUITMENT LTD,,Large,,5106234371,Agency Staff RT,SW20 0BA,597.56,
MHCLG,PINS,27/02/2018,IT Systems Testing & Auditing,TR Digital Transformation,THIRTY FOUR FEET LTD,,Micro,,5106234342,Test resource - Horizon for DCLG,NP15 1QB,"2,100.00",
MHCLG,PINS,27/02/2018,NSI Fees & Expenses,NSI Fees Planning,ANDREW DALE,,Not assigned,,2100058467,,DE23 8DP,"1,680.00",
MHCLG,PINS,27/02/2018,NSI Fees & Expenses,NSI Expenses Planning,ANDREW DALE,,Not assigned,,2100058467,,DE23 8DP,239.09,
MHCLG,PINS,27/02/2018,NSI Fees & Expenses,NSI Fees Planning,ELIZABETH LAWRENCE LTD,,Micro,,2100058426,,RH20 3LY,"2,016.00",
MHCLG,PINS,27/02/2018,NSI Fees & Expenses,NSI Expenses Planning,ELIZABETH LAWRENCE LTD,,Micro,,2100058426,,RH20 3LY,118.32,
MHCLG,PINS,27/02/2018,Web Services,ICT Business Partner,MEMSET LIMITED,,Small,,5106234351,Hosting of mini servers FY 2018-19,GU6 8TB,709.02,
MHCLG,PINS,27/02/2018,Web Services,ICT Business Partner,MEMSET LIMITED,,Small,,5106234389,Hosting of mini servers FY 2018-19,GU6 8TB,597.42,
MHCLG,PINS,28/02/2018,Agency Staff,Planning Casework Operations,REED SPECIALIST RECRUITMENT LTD,,Large,,5106234360,CLASSIC CASEWORK - ES,SW20 0BA,672.66,
MHCLG,PINS,28/02/2018,Agency Staff,Differences - Central,REED SPECIALIST RECRUITMENT LTD,,Large,,5106234361,Agency Staff for Library project,SW20 0BA,566.10,
MHCLG,PINS,28/02/2018,Agency Staff,TR Digital Transformation,REED SPECIALIST RECRUITMENT LTD,,Large,,5106234363,Build Suport,SW20 0BA,"1,018.70",
MHCLG,PINS,28/02/2018,Agency Staff,Planning Casework Operations,REED SPECIALIST RECRUITMENT LTD,,Large,,5106234364,CLASSIC CASEWORK - CM,SW20 0BA,688.10,
MHCLG,PINS,28/02/2018,Agency Staff,Planning Casework Operations,REED SPECIALIST RECRUITMENT LTD,,Large,,5106234400,CLASSIC CASEWORK - KR,SW20 0BA,418.14,
MHCLG,PINS,28/02/2018,Legal Fees,Legal,DCLG,,Public Bodies,,5106234348,Legal Advisory Services from GLD 17/18,HP2 4XN,"145,360.00",
MHCLG,PINS,28/02/2018,NSI Fees & Expenses,NSI Fees Planning,4 PLANNING DELIVERY LTD,,Micro,,2100058469,,S8 9BG,924.00,
MHCLG,PINS,28/02/2018,NSI Fees & Expenses,NSI Expenses Planning,4 PLANNING DELIVERY LTD,,Micro,,2100058469,,S8 9BG,374.28,
MHCLG,PINS,28/02/2018,NSI Fees & Expenses,NSI Fees Planning,4 PLANNING DELIVERY LTD,,Micro,,2100058519,,S8 9BG,924.00,
MHCLG,PINS,28/02/2018,NSI Fees & Expenses,NSI Expenses Planning,4 PLANNING DELIVERY LTD,,Micro,,2100058519,,S8 9BG,63.59,
MHCLG,PINS,28/02/2018,NSI Fees & Expenses,NSI Fees Planning,FITZSIMON PLANNING & DEVELOPMENT,,Micro,,2100058520,,CH7 5NL,"1,120.00",
MHCLG,PINS,28/02/2018,NSI Fees & Expenses,NSI Fees Planning,GARY DEANE ASSOCIATES LIMITED,,Micro,,2100058527,,M33 6RG,"2,184.00",
MHCLG,PINS,28/02/2018,NSI Fees & Expenses,NSI Expenses Planning,GARY DEANE ASSOCIATES LIMITED,,Micro,,2100058527,,M33 6RG,266.22,
MHCLG,PINS,28/02/2018,NSI Fees & Expenses,NSI Fees Planning,SANDRA PRAIL LTD,,Micro,,2100058525,,BN16 1RX,739.20,
MHCLG,PINS,28/02/2018,NSI Fees & Expenses,NSI Expenses Planning,SANDRA PRAIL LTD,,Micro,,2100058525,,BN16 1RX,112.50,
MHCLG,PINS,28/02/2018,Office machinery consumables,Business Support,X M A LIMITED,,Data Not Provided,,5106234403,Office Machine Consumables,NG11 7EP,"1,524.00",
MHCLG,PINS,28/02/2018,Office machinery consumables,Business Support,X M A LIMITED,,Data Not Provided,,5106234404,Office Machine Consumables,NG11 7EP,"2,204.71",
MHCLG,PINS,28/02/2018,Office machinery consumables,Business Support,X M A LIMITED,,Data Not Provided,,5106234405,Office Machine Consumables,NG11 7EP,629.21,
MHCLG,PINS,28/02/2018,Office Supplies,Business Support,BANNER BUSINESS SUPPLIES LTD,,Large,,5106234397,Office Stationery 17-18,S9 1XU,394.46,
MHCLG,PINS,28/02/2018,Office Supplies,Business Support,BANNER BUSINESS SUPPLIES LTD,,Large,,5106234397,Paper 17-18,S9 1XU,399.75,
MHCLG,PINS,28/02/2018,TSOL Adverse Costs,"Policy, Knowledge & Quality",GOVERNMENT LEGAL DEPARTMENT,,Public Bodies,,2100058515,,WC2B 4TS,"14,000.00",
MHCLG,PINS,28/02/2018,TSOL Adverse Costs,"Policy, Knowledge & Quality",GOVERNMENT LEGAL DEPARTMENT,,Public Bodies,,2100058516,,WC2B 4TS,"27,500.00",
MHCLG,PINS,28/02/2018,TSOL Adverse Costs,"Policy, Knowledge & Quality",GOVERNMENT LEGAL DEPARTMENT,,Public Bodies,,2100058517,,WC2B 4TS,"10,000.00",
MHCLG,PINS,28/02/2018,TSOL Adverse Costs,"Policy, Knowledge & Quality",GOVERNMENT LEGAL DEPARTMENT,,Public Bodies,,2100058518,,WC2B 4TS,"3,871.60",
